bitfinex/quotes_BTCUSD_20241102
["timestamp","ask_amount","ask_price","bid_price","bid_amount"]
[1730513881961,0.83439264,69862.0,69861.0,0.00204]
[1730513882178,0.84778114,69862.0,69861.0,0.00204]
[1730513883725,0.86954373,69862.0,69861.0,0.00204]
[1730513884437,0.97665264,69862.0,69861.0,0.00204]
[1730513884657,0.97669204,69862.0,69861.0,0.00204]
[1730513888567,0.96330354,69862.0,69861.0,0.00204]
[1730513888778,0.97670168,69862.0,69861.0,0.00204]
[1730513889432,0.97673977,69862.0,69861.0,0.00204]
[1730513892107,0.96334163,69862.0,69861.0,0.00204]
[1730513892333,0.97674221,69862.0,69861.0,0.00204]
[1730513892557,0.86960201,69862.0,69861.0,0.00204]
[1730513892770,0.86960265,69862.0,69861.0,0.00204]
[1730513893421,0.36369601,69862.0,69861.0,0.00204]
[1730513893657,0.44942469,69862.0,69861.0,0.00204]
[1730513893858,0.36872432,69862.0,69861.0,0.00204]
[1730513894100,0.21049681,69862.0,69861.0,0.00204]
[1730513894530,0.36873023,69862.0,69861.0,0.00104]
[1730513895183,0.45445772,69862.0,69861.0,0.00204]
[1730513895841,0.45445772,69862.0,69861.0,0.00104]
[1730513896058,0.2747973,69862.0,69861.0,0.00104]
[1730513896271,0.21049681,69862.0,69861.0,0.00104]
[1730513896490,0.3687388,69862.0,69861.0,0.00104]
[1730513896739,0.3687388,69862.0,69861.0,4e-05]
[1730513897389,0.21049681,69862.0,69861.0,4e-05]
[1730513898452,0.36876086,69862.0,69861.0,4e-05]
[1730513899364,0.35535964,69862.0,69861.0,4e-05]
[1730513899577,0.44108713,69862.0,69861.0,4e-05]
[1730513899783,0.35535964,69862.0,69861.0,4e-05]
[1730513900001,0.21050654,69862.0,69861.0,4e-05]
[1730513900212,0.45451304,69862.0,69861.0,4e-05]
[1730513900432,0.44110209,69862.0,69861.0,4e-05]
[1730513900855,0.44114002,69862.0,69861.0,4e-05]
[1730513901267,0.3553746,69862.0,69861.0,4e-05]
[1730513901497,0.44114746,69862.0,69861.0,4e-05]
[1730513901929,0.3553746,69862.0,69861.0,4e-05]
[1730513902571,0.44115272,69862.0,69861.0,4e-05]
[1730513903069,0.44119472,69862.0,69861.0,4e-05]
[1730513903483,0.35541658,69862.0,69861.0,4e-05]
[1730513903700,0.36884255,69862.0,69861.0,4e-05]
[1730513904393,0.56341662,69862.0,69861.0,4e-05]
[1730513904827,0.57684254,69862.0,69861.0,4e-05]
[1730513905472,0.46961986,69862.0,69861.0,4e-05]
[1730513905696,0.44276797,69862.0,69861.0,4e-05]
[1730513905907,0.46961969,69862.0,69861.0,4e-05]
[1730513906121,0.46961973,69862.0,69861.0,4e-05]
[1730513906837,0.60807498,69862.0,69861.0,4e-05]
[1730513907272,0.65283017,69862.0,69861.0,4e-05]
[1730513907478,0.65288035,69862.0,69861.0,4e-05]
[1730513908150,0.73458035,69862.0,69861.0,4e-05]
[1730513909505,0.73458139,69862.0,69861.0,4e-05]
[1730513910827,0.72115549,69862.0,69861.0,4e-05]
[1730513911922,0.57621126,69862.0,69861.0,4e-05]
[1730513912143,0.73461092,69862.0,69861.0,4e-05]
[1730513913052,0.70775708,69862.0,69861.0,4e-05]
[1730513913290,0.73461102,69862.0,69861.0,4e-05]
[1730513915546,0.86334217,69862.0,69861.0,4e-05]
[1730513916598,0.73461102,69862.0,69861.0,4e-05]
[1730513917252,0.68461117,69862.0,69861.0,4e-05]
[1730513919017,0.70609472,69862.0,69861.0,4e-05]
[1730513920761,0.69266806,69862.0,69861.0,4e-05]
[1730513920972,0.70609536,69862.0,69861.0,4e-05]
[1730513921195,0.70609536,69862.0,69852.0,0.001644]
[1730513921196,0.119526,69853.0,69852.0,0.001644]
[1730513921419,0.43572011,69853.0,69852.0,0.001644]
[1730513922470,0.72154679,69853.0,69852.0,0.007644]
[1730513922694,0.67637364,69853.0,69852.0,0.007644]
[1730513922920,0.69785437,69853.0,69852.0,0.007644]
[1730513923363,0.69785437,69853.0,69852.0,0.009644]
[1730513923590,0.69985437,69853.0,69852.0,0.006644]
[1730513924009,0.71327392,69853.0,69852.0,0.006644]
[1730513924487,0.70572348,69853.0,69852.0,0.006644]
[1730513925399,0.70572348,69853.0,69852.0,0.001644]
[1730513925650,0.85289663,69853.0,69852.0,0.001644]
[1730513925888,0.89822348,69853.0,69852.0,0.001644]
[1730513926108,0.89622348,69853.0,69852.0,0.001644]
[1730513926572,0.89822348,69853.0,69852.0,0.001644]
[1730513927013,0.89622348,69853.0,69852.0,0.002644]
[1730513927242,0.89822348,69853.0,69852.0,0.003644]
[1730513927493,0.89822348,69853.0,69852.0,0.002644]
[1730513927719,0.92122348,69853.0,69852.0,0.002644]
[1730513928148,0.005,69838.0,69837.0,0.21707513]
[1730513928404,0.37205646,69838.0,69837.0,0.21707513]
[1730513928654,0.37205646,69838.0,69832.0,0.0961]
[1730513928655,0.114557,69834.0,69832.0,0.0961]
[1730513928886,0.23679883,69834.0,69832.0,0.0961]
[1730513929095,0.33755329,69834.0,69832.0,0.0961]
[1730513929309,0.35580673,69834.0,69832.0,0.0961]
[1730513931060,0.35580673,69834.0,69833.0,0.002644]
[1730513931515,0.34234808,69834.0,69833.0,0.002644]
[1730513931748,0.3557461,69834.0,69833.0,0.002644]
[1730513932432,0.26839471,69834.0,69833.0,0.002644]
[1730513933792,0.3607461,69834.0,69833.0,0.002644]
[1730513936013,0.34734808,69834.0,69833.0,0.002644]
[1730513936234,0.36073885,69834.0,69833.0,0.002644]
[1730513936709,0.34734808,69834.0,69833.0,0.002644]
[1730513937405,0.25999669,69834.0,69833.0,0.002644]
[1730513937622,0.25999669,69834.0,69833.0,0.178144]
[1730513938284,0.1676453,69834.0,69833.0,0.178144]
[1730513938735,0.13281044,69834.0,69833.0,0.178144]
[1730513938969,0.1676173,69834.0,69833.0,0.178144]
[1730513940784,0.0530603,69834.0,69833.0,0.178144]
[1730513941000,0.03164069,69834.0,69833.0,0.292703]
[1730513941430,0.02141961,69845.0,69843.0,0.1755]
[1730513941685,0.0133857,69844.0,69843.0,0.114542]
[1730513941912,0.0133857,69844.0,69843.0,0.290042]
[1730513942116,0.0133857,69844.0,69843.0,0.1755]
[1730513942786,0.0133857,69844.0,69843.0,0.290042]
[1730513943011,0.0133857,69844.0,69843.0,0.1775]
[1730513943689,0.0133857,69844.0,69843.0,0.1795]
[1730513943920,0.14270731,69844.0,69843.0,0.1795]
[1730513944124,0.1279257,69844.0,69843.0,0.1795]
[1730513944407,0.14270731,69844.0,69843.0,0.1795]
[1730513944876,0.03163078,69844.0,69843.0,0.294042]
[1730513945103,0.03163078,69844.0,69843.0,0.1795]
[1730513946191,0.04502167,69844.0,69843.0,0.1795]
[1730513946403,0.03163078,69844.0,69843.0,0.1795]
[1730513946625,0.05305624,69844.0,69843.0,0.1795]
[1730513946831,0.04502348,69844.0,69843.0,0.1795]
[1730513947039,0.05305624,69844.0,69843.0,0.1795]
[1730513947249,0.03163078,69844.0,69843.0,0.1795]
[1730513947486,0.03163078,69844.0,69843.0,0.294042]
[1730513947699,0.02678363,69844.0,69843.0,0.294042]
[1730513948367,0.114526,69853.0,69845.0,0.0814]
[1730513948601,0.01339579,69852.0,69849.0,0.1746]
[1730513948854,0.04822475,69851.0,69849.0,0.1746]
[1730513949078,0.16275575,69850.0,69849.0,0.1746]
[1730513949302,0.26489916,69850.0,69849.0,0.1746]
[1730513950388,0.26489916,69850.0,69849.0,0.1786]
[1730513951266,0.26489916,69850.0,69849.0,0.1806]
[1730513951982,0.26989916,69850.0,69849.0,0.009]
[1730513952201,0.26990369,69850.0,69849.0,0.012]
[1730513954588,0.27490369,69850.0,69849.0,0.012]
[1730513955937,0.27490369,69850.0,69849.0,0.009]
[1730513956157,0.27490369,69850.0,69849.0,0.002]
[1730513956398,0.33918687,69850.0,69849.0,0.002]
[1730513956632,0.33918687,69850.0,69849.0,0.006]
[1730513956840,0.27490369,69850.0,69849.0,0.006]
[1730513957472,0.27490369,69850.0,69849.0,0.004]
[1730513957896,0.27490369,69850.0,69849.0,0.005]
[1730513958332,0.005,69848.0,69844.0,0.1746]
[1730513958534,0.114545,69841.0,69840.0,0.1746]
[1730513958730,0.25012567,69841.0,69840.0,0.1746]
[1730513958937,0.32208462,69841.0,69840.0,0.1746]
[1730513960010,0.32208243,69841.0,69840.0,0.1846]
[1730513961043,0.32308243,69841.0,69840.0,0.1926]
[1730513962086,0.2357319,69841.0,69840.0,0.1926]
[1730513962472,0.22233621,69841.0,69840.0,0.1926]
[1730513962816,0.18750395,69841.0,69840.0,0.1926]
[1730513963233,0.23573006,69841.0,69840.0,0.1926]
[1730513963682,0.18750395,69841.0,69840.0,0.1926]
[1730513963882,0.23573574,69841.0,69840.0,0.1926]
[1730513967086,0.21430827,69841.0,69840.0,0.1926]
[1730513967315,0.23575883,69841.0,69840.0,0.1926]
[1730513967984,0.32311022,69841.0,69840.0,0.1926]
[1730513969479,0.32311022,69841.0,69840.0,0.194244]
[1730513970587,0.17860302,69841.0,69840.0,0.194244]
[1730513978648,0.06405802,69841.0,69840.0,0.194244]
[1730513979669,0.17860302,69841.0,69840.0,0.194244]
[1730513981097,0.06405802,69841.0,69840.0,0.194244]
[1730513981309,0.0506603,69841.0,69840.0,0.194244]
[1730513982692,0.02920974,69841.0,69840.0,0.194244]
[1730513983532,0.07211343,69841.0,69840.0,0.194244]
[1730513983750,0.07215515,69841.0,69840.0,0.194244]
[1730513984499,0.02920974,69841.0,69840.0,0.194244]
[1730513985206,0.09276056,69841.0,69840.0,0.194244]
[1730513985618,0.15717868,69841.0,69840.0,0.194244]
[1730513986644,0.09362786,69841.0,69840.0,0.194244]
[1730513988241,0.09362786,69841.0,69840.0,0.308791]
[1730513988439,0.02920974,69841.0,69840.0,0.308791]
[1730513989307,0.04264468,69841.0,69840.0,0.308791]
[1730513989633,0.06414058,69841.0,69840.0,0.308791]
[1730513992068,0.01580314,69841.0,69840.0,0.308791]
[1730513992299,0.06416114,69841.0,69840.0,0.308791]
[1730513992501,0.06416051,69841.0,69840.0,0.308791]
[1730513993666,0.04266807,69841.0,69840.0,0.308791]
[1730513994827,0.04266637,69841.0,69840.0,0.308791]
[1730513995830,0.0426657,69841.0,69840.0,0.308791]
[1730513999286,0.0426619,69841.0,69840.0,0.308791]
[1730514001483,0.08562973,69841.0,69840.0,0.308791]
[1730514002139,0.05877097,69841.0,69840.0,0.308791]
[1730514002363,0.08562773,69841.0,69840.0,0.308791]
[1730514002577,0.06626142,69841.0,69840.0,0.308791]
[1730514002793,0.06526142,69841.0,69840.0,0.300791]
[1730514003008,0.06526141,69841.0,69840.0,0.300791]
[1730514003231,0.06526141,69841.0,69840.0,0.290791]
[1730514004078,0.04165989,69841.0,69840.0,0.290791]
[1730514004488,0.04265989,69841.0,69840.0,0.305791]
[1730514005121,0.04165989,69841.0,69840.0,0.298791]
[1730514005361,0.0426598,69841.0,69840.0,0.305791]
[1730514006949,0.08562995,69841.0,69840.0,0.305791]
[1730514007157,0.1092325,69841.0,69840.0,0.305791]
[1730514007819,0.06626235,69841.0,69840.0,0.305791]
[1730514008253,0.1092325,69841.0,69840.0,0.305791]
[1730514008459,0.09580421,69841.0,69840.0,0.305791]
[1730514008665,0.10923323,69841.0,69840.0,0.305791]
[1730514008883,0.11268196,69841.0,69840.0,0.305791]
[1730514009113,0.09925294,69841.0,69840.0,0.305791]
[1730514009318,0.0697121,69841.0,69840.0,0.305791]
[1730514009526,0.04610955,69841.0,69840.0,0.305791]
[1730514009992,0.08907993,69841.0,69840.0,0.305791]
[1730514011485,0.04610955,69841.0,69840.0,0.305791]
[1730514011766,0.08907993,69841.0,69840.0,0.305791]
[1730514011986,0.11302756,69841.0,69840.0,0.305791]
[1730514012825,0.0431995,69841.0,69840.0,0.305791]
[1730514013066,0.0700604,69841.0,69840.0,0.305791]
[1730514013275,0.08908315,69841.0,69840.0,0.305791]
[1730514013488,0.04611277,69841.0,69840.0,0.305791]
[1730514013694,0.0461132,69841.0,69840.0,0.305791]
[1730514014338,0.0461132,69841.0,69840.0,0.44424625]
[1730514014554,0.03268232,69841.0,69840.0,0.53159764]
[1730514014780,0.001,69841.0,69840.0,0.53159764]
[1730514014993,0.001,69841.0,69840.0,0.44424625]
[1730514015439,0.001,69841.0,69840.0,0.42924625]
[1730514015669,0.21789713,69852.0,69850.0,0.114531]
[1730514016105,0.0441582,69851.0,69850.0,0.114531]
[1730514016526,0.02684004,69851.0,69850.0,0.114531]
[1730514016753,0.0303132,69851.0,69850.0,0.114531]
[1730514017003,0.0441582,69851.0,69850.0,0.114531]
[1730514018042,0.0441582,69851.0,69850.0,0.122531]
[1730514018293,0.0441582,69851.0,69850.0,0.120531]
[1730514018524,0.0441582,69851.0,69850.0,0.129531]
[1730514018730,0.02682899,69851.0,69850.0,0.123531]
[1730514018949,0.02682899,69851.0,69850.0,0.130531]
[1730514021984,0.04416293,69851.0,69850.0,0.130531]
[1730514022873,0.03073733,69851.0,69850.0,0.130531]
[1730514023077,0.04414072,69851.0,69850.0,0.130531]
[1730514023308,0.03073701,69851.0,69850.0,0.130531]
[1730514023501,0.04414008,69851.0,69850.0,0.130531]
[1730514023702,0.04414008,69851.0,69850.0,0.016]
[1730514024356,0.18764235,69851.0,69850.0,0.016]
[1730514024576,0.27499374,69851.0,69850.0,0.016]
[1730514025049,0.26159067,69851.0,69850.0,0.016]
[1730514025490,0.26159067,69851.0,69850.0,0.017644]
[1730514026623,0.26159162,69851.0,69850.0,0.017644]
[1730514026835,0.26659162,69851.0,69850.0,0.017644]
[1730514027046,0.67199826,69851.0,69850.0,0.017644]
[1730514027270,0.58464687,69851.0,69850.0,0.017644]
[1730514027496,0.6275465,69851.0,69850.0,0.017644]
[1730514027714,0.74300717,69851.0,69850.0,0.017644]
[1730514027960,0.74302662,69851.0,69850.0,0.001644]
[1730514028158,0.74302662,69851.0,69850.0,0.007644]
[1730514028159,0.74303053,69851.0,69850.0,0.007644]
[1730514028362,0.74303053,69851.0,69850.0,0.006644]
[1730514028593,0.83038192,69851.0,69850.0,0.006644]
[1730514028797,0.93238192,69851.0,69850.0,0.007644]
[1730514029001,0.93238192,69851.0,69850.0,0.001644]
[1730514029217,0.93538192,69851.0,69850.0,0.001644]
[1730514030524,0.94878454,69851.0,69850.0,0.001644]
[1730514030961,0.94578454,69851.0,69850.0,0.001644]
[1730514031406,0.94778454,69851.0,69850.0,0.001644]
[1730514032558,0.78940088,69851.0,69850.0,0.001644]
[1730514032785,0.94776499,69851.0,69850.0,0.001644]
[1730514033409,1.14413926,69851.0,69850.0,0.001644]
[1730514033627,1.00203918,69851.0,69850.0,0.001644]
[1730514033837,0.99373031,69851.0,69850.0,0.001644]
[1730514034036,1.00712914,69851.0,69850.0,0.001644]
[1730514035752,1.01171289,69851.0,69850.0,0.001644]
[1730514037581,1.14036173,69851.0,69850.0,0.001644]
[1730514038566,1.15375218,69851.0,69850.0,0.001644]
[1730514039682,0.1826,69841.0,69838.0,0.21707513]
[1730514039897,0.78206597,69841.0,69838.0,0.21707513]
[1730514040114,0.80443082,69841.0,69838.0,0.21707513]
[1730514040330,0.71707943,69841.0,69838.0,0.21707513]
[1730514040544,0.80441905,69841.0,69833.0,0.001644]
[1730514040770,0.74604093,69841.0,69833.0,0.001644]
[1730514041007,0.74704093,69841.0,69833.0,0.001644]
[1730514041428,0.74504093,69841.0,69833.0,0.001644]
[1730514041807,0.74804093,69841.0,69840.0,0.002644]
[1730514042215,0.75004093,69841.0,69840.0,0.002644]
[1730514042800,0.74804093,69841.0,69840.0,0.002644]
[1730514044046,0.74803264,69841.0,69840.0,0.002644]
[1730514044472,0.85513923,69841.0,69840.0,0.002644]
[1730514045202,0.7480316,69841.0,69840.0,0.002644]
[1730514045402,0.85512955,69841.0,69840.0,0.002644]
[1730514046316,0.85489109,69841.0,69840.0,0.002644]
[1730514046555,0.51686257,69841.0,69840.0,0.002644]
[1730514046776,0.24663897,69841.0,69840.0,0.170044]
[1730514046986,0.29446994,69841.0,69840.0,0.170044]
[1730514047208,0.29446994,69841.0,69840.0,0.002644]
[1730514047456,0.47744561,69841.0,69840.0,0.002644]
[1730514047680,0.73454897,69841.0,69840.0,0.001644]
[1730514048180,0.73854897,69841.0,69840.0,0.001644]
[1730514048411,0.74054897,69841.0,69840.0,0.001644]
[1730514048635,0.73554897,69841.0,69840.0,0.001644]
[1730514048856,0.74054897,69841.0,69840.0,0.001644]
[1730514049508,0.84760726,69841.0,69840.0,0.001644]
[1730514049725,0.74054897,69841.0,69840.0,0.001644]
[1730514050161,0.74254897,69841.0,69840.0,0.001644]
[1730514050416,0.84259078,69841.0,69840.0,0.001644]
[1730514050632,0.84959078,69841.0,69840.0,0.003644]
[1730514052214,0.74254897,69841.0,69840.0,0.003644]
[1730514053085,0.74693191,69841.0,69840.0,0.003644]
[1730514055138,0.65960119,69841.0,69840.0,0.003644]
[1730514055372,0.65948539,69841.0,69840.0,0.003644]
[1730514055598,0.70409578,69841.0,69840.0,0.003644]
[1730514056259,0.65948539,69841.0,69840.0,0.003644]
[1730514056484,0.7040931,69841.0,69840.0,0.003644]
[1730514058305,0.70410164,69841.0,69840.0,0.003644]
[1730514060788,0.70517692,69841.0,69840.0,0.003644]
[1730514061258,0.70517996,69841.0,69840.0,0.003644]
[1730514061933,0.79253135,69841.0,69840.0,0.003644]
[1730514063326,0.70517996,69841.0,69840.0,0.003644]
[1730514063580,0.70515214,69841.0,69840.0,0.003644]
[1730514064697,0.70515626,69841.0,69840.0,0.003644]
[1730514065796,0.69174216,69841.0,69840.0,0.003644]
[1730514066008,0.70515758,69841.0,69840.0,0.003644]
[1730514066654,0.69877464,69841.0,69840.0,0.003644]
[1730514067303,0.70077464,69841.0,69840.0,0.003644]
[1730514067731,0.68535922,69841.0,69840.0,0.003644]
[1730514067948,0.69877798,69841.0,69840.0,0.003644]
[1730514068183,0.69891085,69841.0,69840.0,0.003644]
[1730514068365,0.70091085,69841.0,69840.0,0.003644]
[1730514070408,0.82939246,69841.0,69840.0,0.003644]
[1730514071459,0.70091085,69841.0,69840.0,0.003644]
[1730514072708,0.70112365,69841.0,69840.0,0.003644]
[1730514074387,0.69917335,69841.0,69840.0,0.003644]
[1730514074617,0.68575459,69841.0,69840.0,0.003644]
[1730514074840,0.69918234,69841.0,69840.0,0.003644]
[1730514075044,0.70118234,69841.0,69840.0,0.003644]
[1730514075261,0.70118235,69841.0,69840.0,0.003644]
[1730514075690,0.69918235,69841.0,69840.0,0.003644]
[1730514076534,0.70118235,69841.0,69840.0,0.003644]
[1730514076764,0.70118381,69841.0,69840.0,0.003644]
[1730514077178,0.69918381,69841.0,69840.0,0.003644]
[1730514078052,0.70118381,69841.0,69840.0,0.003644]
[1730514078285,0.68775459,69841.0,69840.0,0.003644]
[1730514078538,0.84597051,69841.0,69840.0,0.003644]
[1730514079384,0.7011887,69841.0,69840.0,0.003644]
[1730514081088,0.6991887,69841.0,69840.0,0.003644]
[1730514081300,0.84409786,69841.0,69840.0,0.003644]
[1730514081512,0.6991887,69841.0,69840.0,0.003644]
[1730514081737,0.8441112,69841.0,69840.0,0.003644]
[1730514081935,0.68591011,69841.0,69840.0,0.003644]
[1730514082143,0.69934744,69841.0,69840.0,0.003644]
[1730514082405,0.70134744,69841.0,69840.0,0.003644]
[1730514083688,0.7013482,69841.0,69840.0,0.003644]
[1730514085215,0.6993482,69841.0,69840.0,0.003644]
[1730514085461,0.68591011,69841.0,69840.0,0.003644]
[1730514085668,0.69934805,69841.0,69840.0,0.003644]
[1730514086476,0.70134805,69841.0,69840.0,0.003644]
[1730514089187,0.70134844,69841.0,69840.0,0.003644]
[1730514091364,0.70149047,69841.0,69840.0,0.003644]
[1730514092437,0.69949047,69841.0,69840.0,0.003644]
[1730514094262,0.70149047,69841.0,69840.0,0.003644]
[1730514095335,0.69949047,69841.0,69840.0,0.003644]
[1730514095548,0.84458924,69841.0,69840.0,0.177644]
[1730514095758,0.69949047,69841.0,69840.0,0.177644]
[1730514095975,0.54083781,69841.0,69840.0,0.177644]
[1730514096208,0.69954115,69841.0,69840.0,0.177644]
[1730514096430,0.68110282,69841.0,69840.0,0.176644]
[1730514096661,0.69053894,69841.0,69840.0,0.175644]
[1730514096904,0.69753894,69841.0,69840.0,0.177644]
[1730514097150,0.69753894,69841.0,69840.0,0.176644]
[1730514097379,0.69753894,69841.0,69840.0,0.177644]
[1730514097597,0.69953894,69841.0,69840.0,0.177644]
[1730514098045,0.69453894,69841.0,69840.0,0.176644]
[1730514098464,0.69453894,69841.0,69840.0,0.177644]
[1730514098465,0.69953894,69841.0,69840.0,0.177644]
[1730514098679,0.69953894,69841.0,69840.0,0.003644]
[1730514098896,0.70153894,69841.0,69840.0,0.003644]
[1730514099941,0.69953894,69841.0,69840.0,0.003644]
[1730514100352,0.70153894,69841.0,69840.0,0.003644]
[1730514100538,0.70147785,69841.0,69840.0,0.003644]
[1730514102252,0.69947785,69841.0,69840.0,0.003644]
[1730514104413,0.70400175,69841.0,69840.0,0.003644]
[1730514105109,0.5453595,69841.0,69840.0,0.003644]
[1730514105331,0.70400812,69841.0,69840.0,0.003644]
[1730514106424,0.70600812,69841.0,69840.0,0.003644]
[1730514106857,0.692572,69841.0,69840.0,0.003644]
[1730514107078,0.70600051,69841.0,69840.0,0.003644]
[1730514107296,0.692572,69841.0,69840.0,0.003644]
[1730514107505,0.70600051,69841.0,69840.0,0.003644]
[1730514109791,0.54735189,69841.0,69840.0,0.003644]
[1730514109996,0.70600755,69841.0,69840.0,0.003644]
[1730514110654,0.70400801,69841.0,69840.0,0.003644]
[1730514110866,0.69948411,69841.0,69840.0,0.003644]
[1730514113124,0.69948411,69841.0,69840.0,0.098544]
[1730514113538,0.69948411,69841.0,69840.0,0.177644]
[1730514114428,0.69947339,69841.0,69840.0,0.177644]
[1730514119053,0.70144379,69841.0,69840.0,0.177644]
[1730514119898,0.71487153,69841.0,69840.0,0.177644]
[1730514121261,0.71487153,69841.0,69840.0,0.098544]
[1730514122039,0.71487153,69841.0,69840.0,0.003644]
[1730514122234,0.71486022,69841.0,69840.0,0.003644]
[1730514124174,0.68800419,69841.0,69840.0,0.003644]
[1730514124356,0.71486263,69841.0,69840.0,0.003644]
[1730514124767,0.7148558,69841.0,69840.0,0.003644]
[1730514126023,0.70142658,69841.0,69840.0,0.003644]
[1730514126380,0.70142775,69841.0,69840.0,0.003644]
[1730514126995,0.71485774,69841.0,69840.0,0.003644]
[1730514127817,0.70142838,69841.0,69840.0,0.003644]
[1730514128023,0.71485852,69841.0,69840.0,0.003644]
[1730514128227,0.70142838,69841.0,69840.0,0.003644]
[1730514128437,0.71485852,69841.0,69840.0,0.003644]
[1730514130173,0.21789917,69841.0,69840.0,0.37764239]
[1730514130394,0.12887811,69849.0,69840.0,0.37764239]
[1730514130395,0.0429558,69848.0,69847.0,0.1721]
[1730514130607,0.000822,69850.0,69849.0,0.114532]
[1730514130847,0.000822,69850.0,69849.0,0.286632]
[1730514133125,0.000822,69850.0,69849.0,0.295632]
[1730514133591,0.000822,69850.0,69849.0,0.286632]
[1730514134035,0.000822,69850.0,69849.0,0.297632]
[1730514134273,0.000822,69850.0,69849.0,0.308632]
[1730514134717,0.000822,69850.0,69849.0,0.320632]
[1730514137981,0.000822,69850.0,69849.0,0.45908725]
[1730514138195,0.000822,69852.0,69851.0,0.114529]
[1730514138456,0.000822,69852.0,69851.0,0.37684319]
[1730514138661,0.000822,69852.0,69851.0,0.37398039]
[1730514138888,0.000822,69852.0,69851.0,0.50607919]
[1730514139302,0.000822,69852.0,69851.0,0.51607919]
[1730514139784,0.000822,69852.0,69851.0,0.52507919]
[1730514140004,0.000822,69861.0,69860.0,0.283314]
[1730514140208,0.000822,69861.0,69860.0,0.42190119]
[1730514140409,0.02408928,69861.0,69860.0,0.42190119]
[1730514140621,0.000822,69861.0,69860.0,0.42190119]
[1730514141599,0.000822,69861.0,69860.0,0.42290119]
[1730514142761,0.000822,69861.0,69860.0,0.37166539]
[1730514143997,0.000822,69861.0,69860.0,0.37066539]
[1730514144406,0.000822,69861.0,69860.0,0.37566539]
[1730514155531,0.000822,69861.0,69860.0,0.288314]
[1730514156712,0.02453347,69861.0,69860.0,0.288314]
[1730514157347,0.03789537,69861.0,69860.0,0.288314]
[1730514158700,0.05127937,69861.0,69860.0,0.288314]
[1730514159919,0.03791747,69861.0,69860.0,0.288314]
[1730514160121,0.05132157,69861.0,69860.0,0.288314]
[1730514163515,0.02453347,69861.0,69860.0,0.288314]
[1730514163720,0.05136979,69861.0,69860.0,0.288314]
[1730514165615,0.04673146,69861.0,69860.0,0.288314]
[1730514165824,0.02765832,69861.0,69860.0,0.288314]
[1730514166482,0.01382602,69861.0,69860.0,0.72945808]
[1730514166949,0.01341816,69861.0,69860.0,0.60147203]
[1730514167401,0.000822,69862.0,69860.0,0.54718603]
[1730514167615,0.000822,69862.0,69861.0,0.42983055]
[1730514167822,0.01423986,69862.0,69861.0,0.42696825]
[1730514168453,0.000822,69862.0,69861.0,0.42696825]
[1730514169540,0.000822,69862.0,69861.0,0.70408882]
[1730514169771,0.000822,69862.0,69861.0,0.71508882]
[1730514170246,0.000822,69862.0,69861.0,0.70208882]
[1730514170478,0.2476,69869.0,69868.0,0.119501]
[1730514170693,0.26339654,69869.0,69868.0,0.51930764]
[1730514170917,0.26339654,69869.0,69868.0,0.6175411]
[1730514171130,0.26339654,69869.0,69868.0,0.51430764]
[1730514172706,0.26339654,69869.0,69868.0,0.52530764]
[1730514173983,0.26339654,69869.0,69868.0,0.53830764]
[1730514174425,0.000811,69871.0,69868.0,0.53830764]
[1730514174426,0.000811,69871.0,69870.0,0.114498]
[1730514174647,0.000811,69871.0,69870.0,0.25295325]
[1730514175300,0.000811,69871.0,69870.0,0.34545325]
[1730514175720,0.000811,69871.0,69870.0,0.35445325]
[1730514176147,0.000811,69871.0,69870.0,0.36545325]
[1730514179746,0.000811,69871.0,69870.0,0.25095525]
[1730514180353,0.000811,69871.0,69870.0,0.36545325]
[1730514181764,0.000811,69871.0,69870.0,0.226998]
[1730514182389,0.000811,69871.0,69870.0,0.02]
[1730514182613,0.01419915,69871.0,69870.0,0.02]
[1730514182820,0.0300388,69871.0,69870.0,0.02]
[1730514186996,0.01665065,69871.0,69870.0,0.02]
[1730514187196,0.03004221,69871.0,69870.0,0.02]
[1730514192027,0.03004221,69871.0,69870.0,0.30606022]
[1730514192164,0.03004221,69871.0,69870.0,0.303198]
[1730514192370,0.01420256,69871.0,69870.0,0.303198]
[1730514193953,0.01420256,69871.0,69870.0,0.228198]
[1730514194569,0.000811,69871.0,69870.0,0.228198]
[1730514194777,0.01421745,69871.0,69870.0,0.228198]
[1730514196676,0.01422645,69871.0,69870.0,0.228198]
[1730514200161,0.01422645,69871.0,69870.0,0.229842]
[1730514201380,0.01422645,69871.0,69870.0,0.31450404]
[1730514201705,0.01422645,69871.0,69870.0,0.311642]
[1730514203869,0.000811,69871.0,69870.0,0.311642]
[1730514204111,0.01422928,69871.0,69870.0,0.311642]
[1730514204316,0.01422928,69871.0,69870.0,0.45009725]
[1730514205496,0.01422977,69871.0,69870.0,0.45009725]
[1730514207225,0.000811,69871.0,69870.0,0.45009725]
[1730514207433,0.01423077,69871.0,69870.0,0.45009725]
[1730514209102,0.000811,69871.0,69870.0,0.45009725]
[1730514209535,0.01423036,69871.0,69870.0,0.45009725]
[1730514209709,0.000811,69871.0,69870.0,0.45009725]
[1730514220462,0.000811,69871.0,69870.0,0.58857455]
[1730514220669,0.000811,69871.0,69870.0,0.72157455]
[1730514223159,0.000811,69871.0,69870.0,0.58309725]
[1730514228534,0.000811,69871.0,69870.0,0.57209725]
[1730514228665,0.000811,69871.0,69870.0,0.58509725]
[1730514229499,0.000811,69871.0,69870.0,0.57609725]
[1730514229918,0.000811,69871.0,69870.0,0.58709725]
[1730514231129,0.000811,69871.0,69870.0,0.58909725]
[1730514231737,0.000811,69871.0,69870.0,0.58709725]
[1730514234383,0.000811,69871.0,69870.0,0.64829421]
[1730514235453,0.000811,69871.0,69870.0,0.58709725]
[1730514237043,0.000811,69871.0,69870.0,0.59109725]
[1730514238694,0.000811,69871.0,69870.0,0.58009725]
[1730514238902,0.000811,69871.0,69870.0,0.59309725]
[1730514239291,0.000811,69871.0,69870.0,0.58009725]
[1730514239718,0.000811,69871.0,69870.0,0.59409725]
[1730514242039,0.000811,69871.0,69870.0,0.56609725]
[1730514242342,0.000811,69871.0,69870.0,0.48429725]
[1730514242996,0.000811,69871.0,69870.0,0.57164864]
[1730514248675,0.000811,69871.0,69870.0,0.48429725]
[1730514249114,0.000811,69871.0,69870.0,0.37929725]
[1730514249320,0.000811,69871.0,69870.0,0.28559725]
[1730514249772,0.01698191,69871.0,69870.0,0.28559725]